[Event "Polish Youth B18 Championship 2023"]
[Site "Jastrzebia Gora"]
[Date "2023.03.18"]
[Round "8.9"]
[White "Paprocki, Antoni"]
[Black "Dziendziel, Mateusz"]
[Result "1-0"]
[ECO "B57"]
[WhiteElo "2255"]
[BlackElo "2084"]
[Annotator "TA"]
[PlyCount "96"]
[EventDate "2023.03.11"]
[EventType "swiss"]
[EventCountry "POL"]
[SourceTitle "playchess.com"]
[Source "ChessBase"]
[SourceQuality "1"]
[TimeControl "40/5400+30:1800+30"]

{[%evp 26,96,16,-4,27,6,45,45,35,9,37,31,39,21,41,40,66,12,39,33,33,23,25,35,39,50,45,52,43,40,143,31,43,73,97,89,88,0,0,0,90,85,86,85,85,75,182,146,136,142,685,659,923,201,183,170,383,160,758,734,708,698,610,545,5206,4132,29965,29964,29990,29988,29991,29975,29977]} 1. e4 {[%emt 0:00:24] Gheorghiu,Florin} c5 {[%emt 0:00:02]} 2. Nf3 {[%emt 0:00:25]} d6 {[%emt 0:00:01]} 3. d4 {[%emt 0:00:08]} cxd4 {[%emt 0:00:01]} 4. Nxd4 {[%emt 0:00:06]} Nf6 {[%emt 0:00:04]} 5. Nc3 {[%emt 0:00:06]} Nc6 {[%emt 0:00:03]} 6. Bc4 {[%emt 0:05:54]} Qb6 {[%emt 0:01:16]} 7. Nb3 {[%emt 0:01:25]} a6 {[%emt 0:03:11]} 8. O-O {[%emt 0:06:53]} e6 {[%emt 0:02:26]} 9. Be3 {[%emt 0:02:18]} Qc7 {[%emt 0:00:54]} 10. Bd3 {[%emt 0:02:23]} b5 11. f4 {[%emt 0:01:05]} Bb7 {[%emt 0:12:00]} 12. Qf3 {[%emt 0:03:40]} Be7 {[%emt 0:04:44]} 13. a4 {[%emt 0:06:02] 13.Kh1 is setting a new trend.} b4 {[%emt 0:00:07]} 14. Ne2 {[%emt 0:02:25]} h5 {[%emt 0:05:00] B82: Sicilian Scheveningen: 6 f4.} 15. a5 {[%emt 0:01:47]} Nd7 {[%emt 0:05:03] [#]} 16. Ned4 $146 {[%emt 0:16:53]} ({Predecessor:} 16. Qh3 Nc5 17. Ng3 h4 18. Nh1 Nb8 19. f5 e5 20. Nxc5 dxc5 21. b3 Nc6 22. Qg4 Kf8 23. f6 gxf6 {1-0 Ghizdavu,D-Badilles,G Olympiad-20 Preliminaries H 1972 (6)}) 16... Bf6 {[%emt 0:11:29] White is slightly better.} 17. Qf2 {[%emt 0:04:55]} Rc8 {[%emt 0:15:56]} 18. Nxc6 {[%emt 0:06:40]} Qxc6 {[%emt 0:00:38]} 19. Bd4 {[%emt 0:00:07]} e5 {[%emt 0:11:43]} (19... Nc5 {simplifies} 20. Nxc5 Bxd4 21. Qxd4 Qxc5 22. Qxc5 dxc5 23. e5 Ke7) 20. fxe5 {[%emt 0:00:10]} Nxe5 {[%emt 0:02:52]} 21. h3 {[%emt 0:00:38]} (21. Qd2 $14) 21... Rh6 {[%emt 0:01:10]} 22. Qd2 {[%emt 0:09:02]} Rg6 {[%emt 0:05:25]} 23. Qxb4 {[%emt 0:00:57]} Qd7 {[%emt 0:00:10][%cal Od7h3]} 24. Kh1 {[%emt 0:02:35]} Nxd3 {[%emt 0:05:51]} 25. cxd3 {[%emt 0:00:21]} Rc2 {[%emt 0:00:05]} 26. Rf2 {[%emt 0:01:03]} ({Not} 26. Bxf6 $2 Rgxg2 27. Rf3 Rh2+ 28. Kg1 Rxh3 $19) 26... Rxf2 {[%emt 0:00:44]} 27. Bxf2 {[%emt 0:00:08]} Bxb2 {[%emt 0:01:43] [#]} (27... Be7 $14) 28. Nc5 {[%emt 0:08:47]} dxc5 {[%emt 0:02:29]} 29. Qxb2 {[%emt 0:00:02]} Bc6 {[%emt 0:01:09]} 30. Qe5+ {[%emt 0:07:45]} Qe7 {[%emt 0:00:17]} 31. Qb8+ {[%emt 0:02:20]} ({Much worse is} 31. Qxc5 $6 Qxc5 32. Bxc5 f5 $11) (31. Qxh5 $16 {Bh4 is the strong threat.} Qg5 32. Qh8+ Kd7 33. Rg1) 31... Qd8 $11 {[%emt 0:00:25]} 32. Qe5+ {[%emt 0:00:02]} ({White should try} 32. Rb1 $11 Qxb8 33. Rxb8+ Kd7 34. Bxc5) 32... Qe7 $16 {[%emt 0:00:10]} 33. Qxh5 {[%emt 0:00:04] Black must now prevent Bh4. White is more active.} Qg5 {[%emt 0:03:25][%csl Gg6][%cal Rg5g2] Prevents Bh4.} 34. Qh8+ {[%emt 0:04:46]} Kd7 {[%emt 0:00:16][%csl Gg6][%cal Rg5g2]} 35. Rg1 {[%emt 0:00:04] aiming for Qb8.} f5 {[%emt 0:01:51]} (35... Rd6 $16 {was worth a try.}) 36. Qb8 {[%emt 0:02:10]} ({Inferior is} 36. Bxc5 fxe4 37. Qf8 exd3 38. Qf7+ Kc8 39. Qf8+ Qd8 40. Qf5+ Qd7 41. Qf8+ Qd8 42. Qf5+ Qd7 43. Qf8+ Qe8 44. Qf5+ Qd7 $11) 36... fxe4 {[%emt 0:01:53]} 37. dxe4 {[%emt 0:00:58] Threatens to win with Rd1+.} Rd6 {[%emt 0:02:42][%mdl 8192] Prevents Rd1. A mistake that costs the game.} (37... Ke7 $16) 38. Qa7+ $18 {[%emt 0:00:49]} Ke6 {[%emt 0:01:19]} 39. Qxa6 $2 {[%emt 0:00:55]} (39. Bxc5 Bb5 40. Bxd6 Kxd6 41. Rd1+ Ke6 42. Qc7) 39... Bxe4 {[%emt 0:00:24]} 40. Qe2 $36 {[%emt 0:00:00][%mdl 2048] White is on the roll.} Qf5 {[%emt 0:00:00]} (40... Qg6 41. Bxc5 Rd3) 41. Kh2 {[%emt 0:05:06]} (41. Bg3 $18 {and the rest is easy.} Rd3 42. Bh2) 41... Rd3 {[%emt 0:06:42]} (41... Kf7 $16 42. Bh4 Kg8) 42. Re1 {[%emt 0:05:26][%csl LRd3,LRe4]} Kd5 {[%emt 0:01:09]} 43. a6 {[%emt 0:06:15][%cal Ba5a6,Ba6a7][%mdl 32]} Ra3 {[%emt 0:04:16] Repels Qa2+} 44. Bg3 {[%emt 0:07:01]} Qg6 {[%emt 0:05:09]} 45. Rd1+ {[%emt 0:00:39]} Bd3 {[%emt 0:00:16] [#]} 46. a7 $1 {[%emt 0:00:35][%mdl 512] White mates.} c4 {[%emt 0:01:39]} (46... Qa6 47. Qf3+) 47. Qe5+ {[%emt 0:00:18]} Kc6 {[%emt 0:00:10]} 48. Qb8 {[%emt 0:00:07] Black is weak on the dark squares} Kd5 {Artfully played by Paprocki.   Weighted Error Value: White=0.34/Black=0.53} 1-0

[Event "Polish Youth B18 Championship 2023"]
[Site "Jastrzebia Gora"]
[Date "2023.03.18"]
[Round "8.10"]
[White "Kolodziejski, Piotr"]
[Black "Madajczak, Piotr"]
[Result "1/2-1/2"]
[ECO "A45"]
[WhiteElo "2118"]
[BlackElo "1897"]
[Annotator "TA"]
[PlyCount "147"]
[EventDate "2023.03.11"]
[EventType "swiss"]
[EventCountry "POL"]
[SourceTitle "playchess.com"]
[Source "ChessBase"]
[SourceQuality "1"]
[TimeControl "40/5400+30:1800+30"]

{[%evp 9,147,-14,-16,0,0,-38,0,0,0,-19,0,-30,-17,-31,-34,-33,-27,-29,-31,-18,-31,-30,-6,-13,-6,-8,52,35,103,103,103,104,80,84,84,79,77,73,76,97,108,89,80,86,109,140,125,139,145,131,212,69,61,66,60,60,69,0,6,0,52,49,51,62,52,74,98,0,0,0,0,0,94,0,0,0,0,0,0,0,0,0,39,39,39,41,41,41,42,37,41,37,39,41,42,40,42,42,43,43,43,43,45,45,58,45,56,48,70,43,70,39,43,43,43,8,8,8,43,8,43,8,43,8,8,8,8,8,8,8,8,8,8,0,8,8,8,8,8,8]} 1. d4 {[%emt 0:00:03]} Nf6 {[%emt 0:00:22]} 2. Nc3 {[%emt 0:00:11]} d5 {[%emt 0:00:10]} 3. Bf4 {[%emt 0:00:08]} a6 {[%emt 0:01:00]} 4. e3 {[%emt 0:00:40]} e6 {[%emt 0:01:02]} 5. Nf3 {[%emt 0:06:39]} c5 {[%emt 0:00:59]} 6. dxc5 {[%emt 0:12:44] D00: 1 d4 d5: Unusual lines.} Bxc5 {[%emt 0:00:39]} 7. Bd3 {[%emt 0:02:04]} Nc6 {[%emt 0:02:04]} (7... Nbd7 {is more complex.} 8. e4 Qb6 9. O-O Qxb2 10. Qd2 dxe4 11. Nxe4 Nxe4 12. Bxe4 Qb4) 8. O-O {[%emt 0:05:41]} O-O {[%emt 0:01:57]} 9. h3 {[%emt 0:11:29]} h6 {[%emt 0:15:18] [#]} 10. Bh2 $146 {[%emt 0:01:52]} ({Predecessor:} 10. e4 dxe4 11. Nxe4 Nxe4 12. Bxe4 Qf6 13. Bg3 Qxb2 14. Qe2 Bd7 15. Rab1 Qc3 16. Rxb7 {1-0 Liyanage,R (2331)-Singh,O (2382) Asian Continental Blitz op 19th 2022 (9)}) 10... Bd6 {[%emt 0:05:54]} 11. e4 {[%emt 0:06:11]} Bxh2+ {[%emt 0:02:37]} 12. Nxh2 {[%emt 0:00:41]} d4 {[%emt 0:01:25]} 13. Ne2 {[%emt 0:01:17]} e5 {[%emt 0:03:01]} 14. f4 {[%emt 0:03:40]} exf4 {[%emt 0:07:02]} 15. Nxf4 {[%emt 0:04:04]} Re8 {[%emt 0:01:04]} 16. Qf3 {[%emt 0:00:53]} Ne5 {[%emt 0:03:24]} (16... Be6 {keeps more tension.} 17. Qg3 Qd6 18. Nf3 Rad8) 17. Qf2 {[%emt 0:00:17]} Qb6 {[%emt 0:13:48]} (17... Bd7 $11) 18. Nf3 $14 {[%emt 0:07:36] Black must now prevent Nxe5.} Nxf3+ {[%emt 0:13:06]} (18... Qxb2 $2 19. Nxe5 Rxe5 20. Nd5 $18) (18... Qc7 $1 $14) 19. Qxf3 $16 {[%emt 0:01:16]} Re7 {[%emt 0:01:39]} (19... Qxb2 $2 20. Nd5 Qa3 21. e5 Rxe5 22. Nxf6+ Kh8 23. Nd5 $18) 20. Rae1 {[%emt 0:03:36] Threatens to win with e5.} Bd7 {[%emt 0:09:19]} 21. Nd5 {[%emt 0:11:06]} Nxd5 {[%emt 0:00:27]} 22. exd5 {[%emt 0:00:04]} Rae8 {[%emt 0:00:22]} 23. Rxe7 {[%emt 0:02:28]} Rxe7 {[%emt 0:00:01] [#]} 24. d6 $1 {[%emt 0:04:50][%mdl 64] Deflection} Qxd6 {[%emt 0:00:44]} 25. Qxb7 {[%emt 0:00:05]} Qe5 {[%emt 0:09:48]} 26. Qxa6 {[%emt 0:01:59] White has more active pieces.} Bxh3 {[%emt 0:01:05] [#]} 27. Qa8+ $1 {[%emt 0:01:49]} (27. gxh3 $6 Qg3+ 28. Kh1 Qxh3+ 29. Kg1 Qg3+ 30. Kh1 Qh3+ 31. Kg1 Qg3+ 32. Kh1 Qh3+ $11) 27... Re8 {[%emt 0:00:01]} 28. Qf3 {[%emt 0:01:01]} Be6 {[%emt 0:00:08]} 29. a4 {[%emt 0:00:43]} Bd5 {[%emt 0:00:28] [#]} (29... Qc5 $16 30. Qf4 f6) 30. Qf5 {[%emt 0:01:50]} (30. Qf4 $1 $18) 30... Qe3+ $1 $14 {[%emt 0:00:25]} 31. Kh2 {[%emt 0:00:46]} Re5 {[%emt 0:00:40]} 32. Qc8+ {[%emt 0:00:38]} (32. Qh7+ Kf8 33. Rf5 (33. Qh8+ $2 Ke7 $19) 33... Ke7 34. Rxe5+ (34. Qxg7 $2 Rxf5 {[%mdl 64] Remove Defender} 35. Bxf5 Qf4+ 36. Kg1 Qxf5 $19) 34... Qxe5+ 35. Kh1 Qe1+ 36. Kh2 Qe5+ 37. Kg1 Qg3 $17) 32... Re8 {[%emt 0:00:01]} 33. Qf5 {[%emt 0:00:44]} ({White should try} 33. Qh3 $14) 33... Re5 $1 $132 {[%emt 0:00:05][%mdl 2048] Black puts up resistance} 34. Qc8+ {[%emt 0:01:15]} ({But not} 34. Qh7+ Kf8 35. Rf5 (35. Qh8+ $2 Ke7 $19) 35... Ke7 36. Rxe5+ (36. Qxg7 $2 {perishes.} Rxf5 {[%mdl 64] Remove Defender} 37. Bxf5 Qf4+ 38. Kg1 Qxf5 $19) 36... Qxe5+ 37. Kh1 Qe1+ 38. Kh2 Qe5+ 39. Kg1 Qg5 $17) (34. Qh3 $11) 34... Re8 $14 {[%emt 0:00:01]} 35. Qh3 {[%emt 0:00:40] Some like it hot} Qe5+ {[%emt 0:01:10]} 36. Qg3 $1 {[%emt 0:00:26] Qxe5 would be deadly.} Qh5+ {[%emt 0:01:48]} 37. Kg1 {[%emt 0:00:06] aiming for a5.} g6 {[%emt 0:01:06]} 38. Re1 {[%emt 0:03:21] Repels Re5} (38. Qf4 $16) 38... Rxe1+ $11 {[%emt 0:02:03]} 39. Qxe1 {[%emt 0:00:04][%mdl 4096] Endgame KQB-KQB} Qg5 {[%emt 0:01:11][%csl Gd5][%cal Rg5g2]} 40. Bf1 {[%emt 0:00:00]} Bb7 {[%emt 0:00:00]} (40... h5 $11) 41. a5 {[%emt 0:08:18]} (41. Qf2 $16) 41... d3 $1 {[%emt 0:11:02]} 42. cxd3 {[%emt 0:04:40] Strongly threatening d4.} Qc5+ {[%emt 0:00:52]} 43. d4 {[%emt 0:06:08]} Qxd4+ {[%emt 0:01:09]} 44. Qf2 {[%emt 0:00:02]} Qd1 {[%emt 0:03:03]} 45. Qf6 {[%emt 0:07:20]} Qa1 {[%emt 0:08:19]} 46. a6 {[%emt 0:01:41]} Bxa6 {[%emt 0:01:13][%mdl 64] Deflection} 47. Qxa6 {[%emt 0:00:10]} Qxb2 {[%emt 0:00:06]} 48. Qa8+ {[%emt 0:00:37]} Kg7 {[%emt 0:00:09]} 49. Qe4 {[%emt 0:00:24] Prevents Qd4+.} h5 {[%emt 0:00:45]} 50. Qf4 {[%emt 0:00:48]} Qa1 {[%emt 0:00:26]} 51. Kh2 {[%emt 0:00:40]} Qa7 {[%emt 0:07:40]} 52. Qe5+ {[%emt 0:00:30]} f6 {[%emt 0:00:20]} 53. Qf4 {[%emt 0:01:09]} Qd7 {[%emt 0:00:28]} 54. Bc4 {[%emt 0:01:20]} Qe7 {[%emt 0:00:29]} 55. Bd3 {[%emt 0:01:48]} Qd7 {[%emt 0:01:09]} 56. Qg3 {[%emt 0:00:04]} Qf7 {[%emt 0:00:08]} 57. Kh1 {[%emt 0:00:59]} Kh7 {[%emt 0:00:43]} 58. Bc2 {[%emt 0:00:32]} Kg7 {[%emt 0:00:17]} 59. Qd3 {[%emt 0:00:21]} Qe8 {[%emt 0:00:16]} 60. Qe4 {[%emt 0:00:37]} Qxe4 {[%emt 0:02:03]} 61. Bxe4 $14 {[%emt 0:00:06] KB-K3P} f5 {[%emt 0:00:06]} 62. Bc6 {[%emt 0:02:33]} g5 {[%emt 0:00:22]} 63. Kh2 {[%emt 0:00:28]} Kf6 {[%emt 0:00:32]} 64. Kg3 {[%emt 0:01:23]} (64. Be8 $5 {[%cal Re8h5]}) 64... Ke5 {[%emt 0:00:32]} 65. Bd7 {[%emt 0:02:51]} (65. Be8 $5 {[%cal Re8h5]} h4+ 66. Kh3 $16) 65... Ke4 {[%emt 0:00:43]} 66. Kf2 {[%emt 0:01:41]} (66. Be8 $5 {[%cal Re8h5]} h4+ 67. Kh3 $14) 66... h4 {[%emt 0:00:32] The position is equal.} 67. Ba4 {[%emt 0:00:28]} Kf4 {[%emt 0:00:10]} 68. Bc2 {[%emt 0:00:20]} g4 {[%emt 0:00:20]} 69. Ba4 {[%emt 0:00:27]} Kg5 {[%emt 0:00:06]} 70. Bd7 {[%emt 0:00:32]} f4 {[%emt 0:00:07]} 71. Bc8 {[%emt 0:00:27]} h3 {[%emt 0:00:11]} 72. gxh3 {[%emt 0:00:13]} gxh3 {[%emt 0:00:04]} 73. Bxh3 {[%emt 0:00:06]} f3 {[%emt 0:00:03]} 74. Kxf3 {[%emt 0:00:06] Weighted Error Value: White=0.13 (very precise) /Black=0.12 (very precise)} 1/2-1/2

[Event "Polish Youth B18 Championship 2023"]
[Site "Jastrzebia Gora"]
[Date "2023.03.18"]
[Round "8.11"]
[White "Grzesik, Gracjan"]
[Black "Zdybel, Przemyslaw"]
[Result "0-1"]
[ECO "E62"]
[WhiteElo "2149"]
[BlackElo "2268"]
[Annotator "TA"]
[PlyCount "88"]
[EventDate "2023.03.11"]
[EventType "swiss"]
[EventCountry "POL"]
[SourceTitle "playchess.com"]
[Source "ChessBase"]
[SourceQuality "1"]
[TimeControl "40/5400+30:1800+30"]

{[%evp 15,88,39,48,2,19,0,5,14,20,0,10,12,11,0,7,-15,27,23,28,0,42,37,41,0,57,-13,43,16,64,55,46,0,0,0,0,-104,-56,-74,-25,-15,0,-18,0,-174,-201,-203,-191,-264,-256,-356,-345,-908,-893,-814,-762,-746,-656,-709,-570,-893,-882,-853,-850,-982,-962,-1157,-1101,-1997,-1959,-5152,-5143,-2379,-1224,-2990,-2423]} 1. Nf3 {[%emt 0:00:07]} Nf6 {[%emt 0:00:44]} 2. g3 {[%emt 0:00:17]} g6 {[%emt 0:00:37]} 3. Bg2 {[%emt 0:00:06]} Bg7 {[%emt 0:00:03]} 4. c4 {[%emt 0:00:35]} O-O {[%emt 0:00:06]} 5. O-O {[%emt 0:00:12]} d6 {[%emt 0:00:08]} 6. d4 {[%emt 0:00:53]} Nc6 {[%emt 0:00:27]} 7. Nc3 {[%emt 0:00:31]} e5 {[%emt 0:00:31]} 8. d5 {[%emt 0:02:18]} Nb8 $1 {[%emt 0:00:07][%mdl 4] [#] outshines the older 8...Ne7.} 9. c5 {[%emt 0:10:16] E62: King's Indian: Fianchetto: 6...c6 and Panno Variation (6...Nc6) without ...a6.} Na6 $11 {[%emt 0:17:21]} 10. cxd6 {[%emt 0:04:35]} cxd6 {[%emt 0:00:01]} 11. Ne1 {[%emt 0:06:39] The position is equal.} Nd7 {[%emt 0:02:40]} 12. Nd3 {[%emt 0:02:24]} f5 {[%emt 0:02:03]} 13. e4 {[%emt 0:00:34]} Nac5 {[%emt 0:08:10]} 14. Nxc5 {[%emt 0:11:15]} Nxc5 {[%emt 0:00:24] [#]} 15. Be3 $146 {[%emt 0:10:06]} ({Predecessor:} 15. exf5 Bxf5 16. Be3 Rc8 17. b4 Nd3 18. Ne4 Nxb4 19. Rb1 Nxa2 20. Rxb7 Bxe4 21. Bxe4 Nc3 22. Qd3 Nxe4 23. Qxe4 Rc7 24. Rxa7 {½-½ Blagojevic,D (2465)-Djukic,N (2562) MNT-chT Niksic 2018 (1.4)}) 15... Nd7 {[%emt 0:17:52]} (15... f4 $5 {[%cal Rf4e3]} 16. Bxc5 dxc5 $11) 16. f3 {[%emt 0:04:19]} Nf6 {[%emt 0:08:40]} 17. Rc1 {[%emt 0:08:28]} Qa5 {[%emt 0:06:47]} 18. Qb3 {[%emt 0:04:20]} Bd7 {[%emt 0:02:11] Against Nb5} 19. Kh1 {[%emt 0:06:09]} Qa6 {[%emt 0:04:25]} (19... b5 $11) 20. Qb4 {[%emt 0:04:43]} (20. exf5 $14 Bxf5 21. Rfd1) 20... b5 {[%emt 0:15:07]} (20... fxe4 $1 $11 21. Rce1 (21. fxe4 Ng4 $17) 21... exf3 22. Bxf3 b5) 21. Rfd1 {[%emt 0:04:50]} Ne8 {[%emt 0:02:40]} (21... fxe4 $11 22. Nxe4 Nxe4 23. fxe4 Rac8) 22. exf5 $14 {[%emt 0:05:22]} gxf5 {[%emt 0:00:11] [#]} 23. a4 {[%emt 0:00:35]} bxa4 $11 {[%emt 0:00:59]} 24. Bf1 {[%emt 0:01:19]} Qc8 {[%emt 0:00:04]} 25. Nb5 {[%emt 0:08:32]} (25. Nxa4 $11 Rb8 26. Qa5) 25... Qb8 {[%emt 0:00:48]} ({Black should play} 25... Qb7 $17 {Threatens to win with ...a6.} 26. Qa5 Rb8) 26. Qa5 $15 {[%emt 0:02:40]} (26. Qxa4 $2 a6 27. Rc6 (27. Ra1 $2 Nf6 $19) 27... Bxc6 28. dxc6 axb5 $19) 26... f4 {[%emt 0:00:11]} ({Black should try} 26... a6 $17 27. Nc3 (27. Nc7 Nxc7 28. Rxc7 Rf7 $17) 27... e4 28. Nxa4 Qb3) 27. gxf4 $11 {[%emt 0:01:10]} exf4 {[%emt 0:00:01]} 28. Bf2 {[%emt 0:00:41]} ({Much worse is} 28. Bd4 a6 29. Nc7 (29. Bxg7 $2 axb5 30. Qd2 Nxg7 $19) 29... Bxd4 30. Rxd4 Qxb2 $17) 28... a6 {[%emt 0:03:59]} 29. Nc7 {[%emt 0:00:31] White is now going downhill.} (29. Nd4 $11 {and White is okay.}) 29... Nxc7 $19 {[%emt 0:00:22]} 30. Rxc7 {[%emt 0:00:29]} Qxb2 {[%emt 0:01:33]} 31. Bg1 {[%emt 0:00:32]} (31. Rxd7 {is a better defense.} Qxf2 32. Bg2) 31... Rf7 {[%emt 0:01:48] ...Qb3 would be deadly.} 32. Bd3 {[%emt 0:00:28]} Qb3 {[%emt 0:01:16]} 33. Qd2 {[%emt 0:00:31] [#]} (33. Rd2) 33... Bg4 $1 {[%emt 0:01:33][%mdl 576] Discovered Attack. Black is clearly winning.} 34. fxg4 {[%emt 0:00:30]} Qxd5+ {[%emt 0:00:42]} 35. Qg2 {[%emt 0:00:30]} Qxg2+ {[%emt 0:00:08]} 36. Kxg2 {[%emt 0:00:02]} Rxc7 {[%emt 0:00:05]} 37. Be4 {[%emt 0:00:14]} Re8 {[%emt 0:01:35]} 38. Bd5+ {[%emt 0:00:06]} Kh8 {[%emt 0:00:19]} 39. Rd2 {[%emt 0:00:34]} a3 {[%emt 0:00:48] aiming for ...Rc3.} 40. Bf2 {[%emt 0:00:00]} Rc3 {[%emt 0:00:00]} 41. h4 {[%emt 0:01:14]} Rb8 {[%emt 0:03:34]} 42. Rd4 {[%emt 0:01:28]} a2 {[%emt 0:06:00]} 43. Bxa2 {[%emt 0:01:30]} Rc2 {[%emt 0:00:10]} 44. Ra4 {[%emt 0:00:42]} Rbb2 {[%emt 0:00:07][%csl LRa2,LRf2] Excellently played by Zdybel!   Weighted Error Value: White=0.89/Black=0.25 (precise)} 0-1

[Event "Polish Youth B18 Championship 2023"]
[Site "Jastrzebia Gora"]
[Date "2023.03.18"]
[Round "8.12"]
[White "Wilk, Igor"]
[Black "Jedraszek, Pawel"]
[Result "1/2-1/2"]
[ECO "B24"]
[WhiteElo "2058"]
[BlackElo "1944"]
[Annotator "TA"]
[PlyCount "71"]
[EventDate "2023.03.11"]
[EventType "swiss"]
[EventCountry "POL"]
[SourceTitle "playchess.com"]
[Source "ChessBase"]
[SourceQuality "1"]
[TimeControl "40/5400+30:1800+30"]

{[%evp 20,71,-12,-21,-9,-17,-12,-55,-55,-82,-78,-81,-50,-70,-65,-64,-71,-123,-108,-114,-156,-141,-110,-105,-101,-106,-96,-95,-77,-151,-175,-385,-115,-144,-104,-94,0,0,0,0,0,-8,-8,-19,-8,-8,-8,-8,0,0,0,0,0,0]} 1. e4 {[%emt 0:00:03]} c5 {[%emt 0:00:07]} 2. Nc3 {[%emt 0:00:07]} Nc6 {[%emt 0:01:23]} 3. g3 {[%emt 0:00:29]} g6 {[%emt 0:00:07]} 4. Bg2 {[%emt 0:00:29]} Bg7 {[%emt 0:00:31]} 5. Nge2 {[%emt 0:00:31]} e6 {[%emt 0:02:25]} 6. O-O {[%emt 0:01:15]} Nge7 {[%emt 0:00:29]} 7. d3 {[%emt 0:01:02]} d6 {[%emt 0:03:07]} 8. Be3 {[%emt 0:04:30]} Nd4 {[%emt 0:00:50]} 9. f4 {[%emt 0:01:17]} O-O {[%emt 0:02:09]} 10. Qd2 {[%emt 0:02:31]} Rb8 {[%emt 0:02:20]} 11. a4 {[%emt 0:02:20]} a6 {[%emt 0:03:09] B26: Closed Sicilian: 3 g3, lines with early Be3.} 12. g4 {[%emt 0:07:22]} f5 {[%emt 0:03:50] [#]} 13. exf5 $146 {[%emt 0:02:45]} ({Predecessor:} 13. h3 b5 14. axb5 axb5 15. Ng3 b4 16. Nd1 Bb7 17. Kh2 Ra8 18. Nf2 Qd7 19. Rxa8 Rxa8 {1-0 Marcziter,D (2243)-Boskovic,D (2457) Titled Tuesday intern op 10th Aug blitz 2021 (3)}) 13... gxf5 {[%emt 0:00:54] Black is slightly better.} 14. h3 {[%emt 0:07:22]} b5 {[%emt 0:03:27]} 15. axb5 {[%emt 0:02:30]} axb5 {[%emt 0:01:36]} 16. Bxd4 {[%emt 0:03:59]} cxd4 {[%emt 0:00:19]} 17. Nd1 {[%emt 0:00:17]} e5 {[%emt 0:16:48]} 18. g5 {[%emt 0:14:45]} ({Better is} 18. fxe5 dxe5 19. Qg5) 18... Ng6 $17 {[%emt 0:07:17]} 19. Ra7 {[%emt 0:09:38]} Be6 {[%emt 0:04:24] Against Bd5} 20. Qa5 {[%emt 0:00:53]} Qxa5 {[%emt 0:01:50]} 21. Rxa5 {[%emt 0:00:05]} Rfc8 {[%emt 0:04:49]} 22. c3 {[%emt 0:00:36]} Nxf4 {[%emt 0:04:43]} 23. Nxf4 {[%emt 0:00:45]} exf4 {[%emt 0:00:02]} 24. Re1 {[%emt 0:04:08]} (24. Rxf4 $142 dxc3 25. bxc3) 24... Bb3 {[%emt 0:03:38]} 25. Ra7 $2 (25. Ra6) 25... Re8 $2 {[%emt 0:03:57]} (25... dxc3 $19 {and Black stays clearly on top.} 26. bxc3 b4) 26. Kf2 {[%emt 0:05:10]} Rxe1 {[%emt 0:04:46]} 27. Kxe1 {[%emt 0:01:00] [#]} Bxd1 {[%emt 0:06:22]} (27... h6 $1 $17 {[%cal Rh6g5]} 28. gxh6 Bxh6) 28. Kxd1 $11 {[%emt 0:00:30] The position is equal.} dxc3 $17 {[%emt 0:00:05][%mdl 4096] Endgame KRB-KRB} 29. Bd5+ {[%emt 0:01:06]} Kh8 {[%emt 0:00:08]} 30. bxc3 {[%emt 0:00:05]} Bxc3 {[%emt 0:00:12]} 31. Kc2 {[%emt 0:02:58]} b4 {[%emt 0:04:45][%cal Of4f3]} 32. Kb3 {[%emt 0:00:40]} Be1 {[%emt 0:05:25]} 33. Rf7 {[%emt 0:01:01]} Bh4 {[%emt 0:01:20]} 34. Rxf5 {[%emt 0:00:34]} Kg7 {[%emt 0:00:12]} 35. Rxf4 {[%emt 0:00:21]} Bxg5 {[%emt 0:00:06]} 36. Rxb4 {Weighted Error Value: White=0.25 (precise) /Black=0.30} 1/2-1/2